fUSD/lending_fUSD_20240702
["ID","MTS","AMOUNT","RATE_DAILY","PERIOD"]
[330883206,1719897033061,-177.37053917,0.00014907,2]
[330883207,1719897033070,-150.0,0.00014949,2]
[330883208,1719897033079,-150.0,0.0001495,2]
[330883209,1719897033089,-150.0,0.00014957,2]
[330883210,1719897033098,-150.0,0.00014965,2]
[330883211,1719897033108,-150.0,0.00014969,2]
[330883212,1719897033117,-150.5,0.0001497,7]
[330883213,1719897033128,-150.0,0.00014972,2]
[330883214,1719897033138,-150.0,0.00014973,2]
[330883215,1719897033148,-150.0,0.00014976,2]
[330883216,1719897033157,-150.5,0.0001498,7]
[330883217,1719897033168,-150.0,0.00014982,2]
[330883218,1719897033180,-2717.5384151,0.00014988,2]
[330883219,1719897033189,-28502.18923,0.00014988,2]
[330883220,1719897033199,-2977.978743,0.00014989,2]
[330883221,1719897033209,-7314.574516,0.00014989,2]
[330883222,1719897033220,-2469.8882305,0.0001499,2]
[330883223,1719897033229,-6066.5918287,0.0001499,2]
[330883224,1719897033238,-150.5,0.0001499,7]
[330883225,1719897033249,-2481.0828034,0.0001499,2]
[330883226,1719897033259,-26022.1865365,0.0001499,2]
[330883227,1719897033268,-171.52455341,0.0001499,2]
[330883228,1719897033278,-171.52455341,0.0001499,2]
[330883229,1719897033287,-150.0,0.00014998,2]
[330883230,1719897033296,-209.7635483,0.00014999,2]
[330883231,1719897033306,-5919.74692949,0.00014999,2]
[330883232,1719897033315,-500.0,0.00014999,2]
[330883233,1719897033325,-621.89504533,0.00014999,2]
[330883234,1719897033334,-205.88326157,0.00014999,2]
[330883235,1719897033344,-453.89415404,0.00014999,2]
[330883236,1719897033353,-150.0,0.00014999,2]
[330883237,1719897033364,-300.0,0.00014999,2]
[330883238,1719897033373,-300.0,0.00014999,2]
[330883239,1719897033384,-302.27324941,0.00014999,2]
[330883240,1719897033393,-830.0,0.00015,2]
[330883241,1719897033403,-172681.2661313,0.00015,2]
[330883248,1719897037970,-331.18445053,0.00014987,2]
[330883249,1719897037979,-208.42686906,0.00014987,2]
[330883251,1719897037989,-178.33457629,0.00014999,2]
[330883254,1719897038000,-409.67029353,0.00014999,2]
[330883255,1719897038009,-308579.75434241,0.00015,2]
[330883257,1719897038261,-3121.61111413,0.00015,2]
[330883258,1719897038273,-1259.0183075,0.00015,2]
[330883259,1719897038303,-1717.2,0.00015,2]
[330883275,1719897040306,-185.5265701,0.000149,2]
[330883276,1719897040316,-11320.3177413,0.00015,2]
[330883277,1719897040327,-555.29,0.00015,2]
[330883278,1719897040357,-1292.76814614,0.00015,2]
[330883279,1719897040368,-43963.15270638,0.00015,2]
[330883280,1719897040411,-449.68867875,0.00015,2]
[330883281,1719897040562,-74536.41090497,0.00015,2]
[330883282,1719897040606,-763.47230131,0.00015,2]
[330883283,1719897040764,-332.98441238,0.00012928,2]
[330883284,1719897040776,-9362.17658762,0.00012928,2]
[330883285,1719897040786,-31350.85781759,0.00015,2]
[330883286,1719897040814,-463.73466638,0.00015,2]
[330883287,1719897040865,-1942.98289716,0.00015,2]
[330883288,1719897040876,-573.27624306,0.00015,2]
[330883300,1719897043267,-1753.95735098,0.00013799,2]
[330883301,1719897043279,-489.29187735,0.00013799,2]
[330883302,1719897043397,-2391.02273755,0.00013799,2]
[330883303,1719897043409,-403.22850324,0.00013799,2]
[330883304,1719897043420,-1144.36375668,0.00013799,2]
[330883305,1719897043431,-695.84866301,0.00013799,2]
[330883306,1719897043442,-1948.93055111,0.00013799,2]
[330883307,1719897043453,-4436.63080315,0.00013799,2]
[330883308,1719897043486,-790.18897835,0.00013799,2]
[330883309,1719897043531,-24549.31977664,0.00013799,2]
[330883310,1719897043542,-31889.19828372,0.00013799,2]
[330883311,1719897043553,-973.369812,0.00013799,2]
[330883312,1719897043566,-308.41090517,0.00013799,2]
[330883313,1719897043582,-664.32126708,0.00013799,2]
[330883314,1719897043593,-412.74691942,0.00013799,2]
[330883315,1719897043608,-2819.0108094,0.00013799,2]
[330883316,1719897043620,-3799.999993,0.00013799,2]
[330883317,1719897043633,-2743.43994,0.00013799,2]
[330883318,1719897043733,-1276.4995102,0.00013799,2]
[330883336,1719897046155,-1789.07405067,0.00013799,2]
[330883337,1719897046169,-276.90558802,0.00013799,2]
[330883338,1719897046331,-14444.23992326,0.00013799,2]
[330883339,1719897046341,-320.36004232,0.000149,2]
[330883340,1719897046350,-747.0,0.00015,2]
[330883341,1719897046360,-99963.75717674,0.00015,2]
[330883342,1719897046371,-4506.06258621,0.00015,2]
[330883343,1719897046382,-855.03487553,0.00015,2]
[330883344,1719897046393,-325.01452404,0.00015,2]
[330883345,1719897046404,-404.4192757,0.00015,2]
[330883346,1719897046419,-1207.68777187,0.00015,2]
[330883347,1719897046597,-2221.44689245,0.00015,2]
[330883349,1719897046609,-9491.1,0.00015,2]
[330883351,1719897046620,-4903.45504488,0.00015,2]
[330883353,1719897046632,-20757.64335188,0.00015,2]
[330883354,1719897046643,-76425.31405427,0.00015,2]
[330883356,1719897046653,-817.82184304,0.00015,2]
[330883359,1719897046674,-1033.59720923,0.00015,2]
[330883362,1719897155784,16085.90757461,0.00011199,2]
[330883363,1719897232393,311.97194005,0.00011199,2]
[330883364,1719897234318,641.65100367,0.00011199,2]
[330883365,1719897330323,641.65100367,0.00011199,2]
[330883368,1719897434324,641.65100367,0.00011199,2]
[330883370,1719897513326,558.71545692,0.00011199,2]
[330883374,1719898030391,1903.03082168,0.00011199,2]
[330883375,1719898113633,1810.0,0.0002208,120]
[330883376,1719898196317,2009.20793335,0.00011199,2]
[330883377,1719898196954,3072.15423039,0.00011199,2]
[330883378,1719898205466,968.31897619,0.00011199,2]
[330883383,1719898232323,-756.14,0.00012087,2]
[330883384,1719898232333,-1436.1003808,0.00013128,2]
[330883385,1719898232346,-465.31681403,0.00013128,2]
[330883386,1719898232356,-1635.9960437,0.00013472,2]
[330883387,1719898232392,-297.0393526,0.00013472,2]
[330883388,1719898232402,-435.06208894,0.0001351,2]
[330883389,1719898233624,-564.93791106,0.0001351,2]
[330883390,1719898233635,-200.0,0.00013711,2]
[330883391,1719898233647,-1494.94298711,0.00013736,2]
[330883392,1719898233658,-300.0,0.00013758,2]
[330883393,1719898233668,-849.14809043,0.00013759,2]
[330883394,1719898233677,-214.82,0.00013826,2]
[330883395,1719898233688,-482.94283221,0.00013849,2]
[330883396,1719898233697,-264.56470044,0.00013889,2]
[330883397,1719898233707,-155.51034791,0.00013899,2]
[330883398,1719898233717,-250.0,0.00013923,2]
[330883399,1719898233727,-607.82,0.00013933,2]
[330883400,1719898233737,-461.77519824,0.00014,2]
[330883401,1719898233746,-500.0,0.00014006,2]
[330883402,1719898233756,-250.0,0.00014013,2]
[330883403,1719898233765,-360.0,0.00014083,2]
[330883404,1719898233775,-116.72607076,0.00014351,2]
[330883405,1719898233791,-639.41392924,0.00014351,2]
[330883407,1719898233800,-380.32591715,0.00014499,2]
[330883409,1719898233809,-513.43003863,0.000146,2]
[330883411,1719898233821,-486.56996137,0.000146,2]
[330883412,1719898233830,-1000.0,0.000146,2]
[330883414,1719898233839,-1019.0,0.000146,2]
[330883416,1719898233850,-1105.0,0.000146,2]
[330883418,1719898233859,-607.82,0.0001463,2]
[330883421,1719898233869,-1046.02845883,0.000147,2]
[330883423,1719898233879,-1135.80625023,0.000147,2]
[330883425,1719898233892,-1031.22510785,0.000147,2]
[330883427,1719898233901,-156.47089514,0.000148,2]
[330883429,1719898233911,-3220.15992171,0.000148,2]
[330883431,1719898233923,-752.35031756,0.000148,2]
[330883435,1719898233949,-676.1,0.000148,2]
[330883437,1719898233961,-766.70047964,0.000148,2]
[330883509,1719898238274,-499.74689577,0.000148,2]
[330883510,1719898238286,-4307.28979215,0.000148,2]
[330883511,1719898238296,-3000.0,0.0001485,2]
[330883512,1719898238306,-500.0,0.00014879,2]
[330883513,1719898238316,-500.0,0.0001488,2]
[330883514,1719898238325,-500.0,0.0001488,2]
[330883515,1719898238335,-200.0,0.0001488,2]
[330883516,1719898238344,-614.49,0.0001489,3]
[330883517,1719898238354,-500.0,0.000149,2]
[330883518,1719898238363,-9048.704,0.000149,2]
[330883519,1719898238373,-67141.076,0.000149,2]
[330883520,1719898238383,-13780.3311,0.000149,2]
[330883521,1719898238393,-150.2019516,0.000149,2]
[330883522,1719898238402,-153.54618,0.000149,2]
[330883523,1719898238413,-62191.47566126,0.000149,2]
[330883524,1719898238423,-33161.26199789,0.000149,2]
[330883525,1719898238435,-349.94302213,0.000149,2]
[330883526,1719898238445,-3800.35881236,0.000149,2]
[330883527,1719898238455,-155.0,0.00014973,2]
[330883528,1719898238465,-4827.3954571,0.00014989,2]
[330883529,1719898238475,-171.52455344,0.0001499,2]
[330883530,1719898238484,-178.33457629,0.00014999,2]
[330883531,1719898238494,-409.67029353,0.00014999,2]
[330883532,1719898238504,-208.42686906,0.00014999,2]
[330883533,1719898238515,-475.16082276,0.00014999,2]
[330883534,1719898238525,-674.0,0.00015,2]
[330883535,1719898238534,-102709.17944225,0.00015,2]
[330883536,1719898238546,-29086.12977595,0.00015,2]
[330883537,1719898238572,-6046.96421405,0.00015,2]
[330883538,1719898238584,-354.451,0.00015,2]
[330883539,1719898239106,-509.16789362,0.00015,2]
[330883540,1719898239118,-500.0,0.00015,2]
[330883597,1719898240545,-1801.23998222,0.00015,2]
[330883598,1719898240761,-332639.21199941,0.00015,2]
[330883599,1719898240773,-3635.24585208,0.00015,2]
[330883600,1719898240837,-2551.19269627,0.00015,2]
[330883601,1719898241054,-259.11872531,0.00015,2]
[330883622,1719898243419,-15111.128,0.00015,2]
[330883623,1719898243625,-655.09436964,0.00015,2]
[330883624,1719898243979,-5914.26288809,0.00015,2]
[330883626,1719898246516,-1039.45172814,0.000147,2]
[330883627,1719898246525,-762.49545148,0.00015,2]
[330883628,1719898246537,-1100.8999995,0.00015,2]
[330883629,1719898246548,-542.39928832,0.00015,2]
[330883630,1719898246562,-2175.10780721,0.00015,2]
[330883631,1719898246616,-500.0,0.00015,2]
[330883632,1719898246628,-4244.81242003,0.00015,2]
[330883633,1719898246706,-205480.45572303,0.00015,2]
[330883634,1719898246820,-580.76799923,0.00015,2]
[330883635,1719898246832,-1208.0,0.00015,2]
[330883636,1719898349378,15279.65785724,0.00011199,2]
[330883638,1719898439910,567.26372056,0.00011199,2]
[330883639,1719898439945,2445.59437604,0.00011199,2]
[330883644,1719898534483,1076.66313378,0.00011199,2]
[330883649,1719898838634,-482.0,0.00011946,2]
[330883650,1719898838659,-737.52,0.00011947,2]
[330883651,1719898838681,-759.40057698,0.0001251,2]
[330883652,1719898838703,-1105.52,0.00012912,2]
[330883653,1719898838725,-200.0,0.00012959,2]
[330883654,1719898838751,-200.0,0.0001299,2]
[330883655,1719898838773,-154.68771869,0.00013,2]
[330883656,1719898838796,-300.0,0.00013084,2]
[330883657,1719898838818,-23900.0,0.00013085,2]
[330883658,1719898838839,-17514.04,0.00013242,2]
[330883659,1719898838862,-186.66,0.00013332,2]
[330883660,1719898838883,-309.23,0.00013332,2]
[330883661,1719898838904,-178.42,0.00013479,2]
[330883662,1719898838927,-155.69,0.00013674,2]
[330883663,1719898838950,-228.81,0.00013699,2]
[330883664,1719898838971,-1159.13,0.00013699,2]
[330883665,1719898838993,-22045.0,0.00013721,2]
[330883666,1719898839015,-250.0,0.00013734,2]
[330883667,1719898839039,-155.69,0.00013817,2]
[330883668,1719898839062,-432.96,0.0001388,2]
[330883669,1719898839086,-13739.71320654,0.0001389,2]
[330883670,1719898839108,-299.99,0.0001389,2]
[330883671,1719898839131,-220.33,0.0001389,2]
[330883672,1719898839152,-10483.9861,0.000139,2]
[330883673,1719898839177,-1000.0,0.000139,2]
[330883674,1719898839200,-62618.91376986,0.000139,2]
[330883675,1719898839223,-9630.84164538,0.000139,2]
[330883676,1719898839245,-13780.3311,0.000139,2]
[330883677,1719898839268,-87790.7104,0.000139,2]
[330883678,1719898839291,-3834.53700386,0.000139,2]
[330883679,1719898839313,-320.3892136,0.000139,2]
[330883680,1719898839335,-1000.0,0.000139,2]
[330883681,1719898839357,-13393.86939695,0.00013902,2]
[330883682,1719898839380,-528.32760702,0.00013902,2]
[330883683,1719898839401,-349.94302213,0.00013902,2]
[330883684,1719898839425,-155.69,0.00013959,2]
[330883685,1719898839448,-467.54725925,0.00013987,2]
[330883686,1719898839471,-614.49,0.0001399,3]
[330883687,1719898839498,-295.75,0.0001399,7]
[330883688,1719898839521,-294.77773137,0.0001399,2]
[330883689,1719898839545,-294.77773137,0.0001399,2]
[330883690,1719898839568,-294.77773137,0.0001399,2]
[330883691,1719898839591,-1000.0,0.00013999,2]
[330883692,1719898839613,-266.526448,0.00013999,2]
[330883693,1719898839635,-194.52606602,0.00013999,2]
[330883694,1719898839659,-302.52139781,0.00013999,2]
[330883695,1719898839682,-208.42686906,0.00013999,2]
[330883696,1719898839704,-300.0,0.00013999,2]
[330883697,1719898839727,-223409.89874811,0.00014,2]
[330883698,1719898839755,-4445994.92360476,0.00014,2]
[330883699,1719898841824,1583.5089,0.000139,2]
[330883700,1719898885469,150.0,0.00013941,2]
[330883701,1719898889782,250.0,0.00013952,2]
[330883702,1719898891694,23525.0270349,0.00013999,2]
[330883703,1719898891975,200.0,0.00013952,2]
[330883704,1719898932152,85923.831,0.000138,2]
[330883705,1719898934137,257.65062067,0.00013731,2]
[330883706,1719898944090,4493.93,0.0001395,2]
[330883707,1719898949016,4625.6290197,0.00013952,2]
[330883708,1719898951515,448.388,0.000138,2]
[330883709,1719898961197,-257.12126259,0.00014002,2]
[330883710,1719898961223,-155.69,0.00014102,2]
[330883711,1719898961247,-737.52,0.00014211,2]
[330883712,1719898961272,-155.69,0.00014244,2]
[330883713,1719898961295,-155.69,0.00014387,2]
[330883714,1719898961319,-432.96,0.00014574,2]
[330883715,1719898961342,-200.0,0.00014579,2]
[330883716,1719898961365,-1110.18890765,0.000147,2]
[330883717,1719898961387,-151.42,0.000147,2]
[330883718,1719898961410,-300.0,0.000147,2]
[330883719,1719898961432,-300.0,0.000147,5]
[330883720,1719898961454,-1567.8844,0.0001475,2]
[330883721,1719898961477,-8667.75748077,0.00014754,2]
[330883722,1719898961498,-429.71,0.00014767,2]
[330883723,1719898961522,-300.0,0.00014799,2]
[330883724,1719898961543,-500.0,0.000148,2]
[330883725,1719898961563,-9048.704,0.000148,2]
[330883726,1719898961585,-67141.076,0.000148,2]
[330883727,1719898961607,-150.99,0.000148,2]
[330883728,1719898961630,-600.0,0.000148,5]
[330883729,1719898961652,-1715.7,0.00014822,2]
[330883730,1719898961674,-307.22,0.0001484,3]
[330883731,1719898961696,-95293.521979,0.0001485,2]
[330883732,1719898961719,-500.0,0.00014879,2]
[330883733,1719898961741,-500.0,0.0001488,2]
[330883734,1719898961762,-500.0,0.0001488,2]
[330883735,1719898961788,-200.0,0.0001488,2]
[330883736,1719898961811,-183.85954952,0.000149,2]
[330883737,1719898961832,-7500.0,0.000149,2]
[330883738,1719898961858,-900.0,0.000149,5]
[330883739,1719898961879,-220.33,0.00014904,2]
[330883740,1719898961901,-4299.986471,0.00014989,2]
[330883741,1719898961922,-20556.9219339,0.00014989,2]
[330883742,1719898961945,-1962.5176151,0.00014989,2]
[330883743,1719898961967,-3685.6710986,0.0001499,2]
[330883744,1719898961989,-17620.0677744,0.0001499,2]
[330883745,1719898962010,-1681.4955755,0.0001499,2]
[330883746,1719898962032,-178.33457629,0.00014999,2]
[330883747,1719898962053,-409.67029353,0.00014999,2]
[330883748,1719898962078,-331.18445053,0.00014999,2]
[330883749,1719898962100,-672.0,0.00015,2]
[330883750,1719898962123,-108985.94781074,0.00015,2]
[330883751,1719898962147,-139499.09998441,0.00015,2]
[330883752,1719898962169,-24643.95852302,0.00015,2]
[330883753,1719898962192,-3968.79438035,0.00015,2]
[330883754,1719898962216,-622.93075988,0.00015,2]
[330883755,1719898962240,-491.0,0.00015,2]
[330883756,1719898962262,-5000.0,0.00015,2]
[330883757,1719898962286,-1843586.12580845,0.00015,2]
[330883758,1719898962311,-10348.49127771,0.00015,2]
[330883759,1719898962333,-158.000005,0.00015,2]
[330883760,1719898962356,-2002.031971,0.00015,2]
[330883761,1719898962377,-151.0,0.00015,2]
[330883762,1719898962399,-151.0,0.00015,2]
[330883763,1719898962421,-2002.031971,0.00015,2]
[330883764,1719898962443,-151.542244,0.00015,2]
[330883765,1719898962464,-151.0,0.00015,2]
[330883766,1719898962486,-3000.0,0.00015,2]
[330883767,1719898962508,-151.0,0.00015,2]
[330883768,1719898962530,-158.943467,0.00015,2]
[330883769,1719898962555,-152.046843,0.00015,2]
[330883770,1719898962578,-618.535463,0.00015,2]
[330883771,1719898962601,-618.535463,0.00015,2]
[330883772,1719898962624,-185.034138,0.00015,2]
[330883773,1719898962647,-185.034138,0.00015,2]
[330883774,1719898963778,500.0,0.00012636,2]
[330883775,1719898964389,500.0,0.00012636,2]
[330883776,1719898965418,500.0,0.0001428,2]
[330883777,1719898966205,500.0,0.0001428,2]
[330883778,1719898969059,19908.2086,0.000138,2]
[330883779,1719898971378,3000.0,0.00015,2]
[330883781,1719898984977,553.927529,0.00014987,2]
[330883782,1719898987229,199.24982021,0.0001428,2]
[330883783,1719898988729,1000.0,0.0001475,2]
[330883784,1719898992644,500.0,0.00012636,2]
[330883785,1719898994211,548113.14984157,0.00013999,2]
[330883786,1719899012625,-800.0,0.00014006,2]
[330883787,1719899012649,-553.58236936,0.0001428,2]
[330883788,1719899012670,-200.7425604,0.0001428,2]
[330883789,1719899012693,-500.0,0.0001428,2]
[330883790,1719899012719,-20320.67814101,0.0001428,2]
[330883791,1719899012742,-302.3304855,0.0001428,2]
[330883792,1719899012766,-19823.10043926,0.0001428,2]
[330883793,1719899012790,-280.92811136,0.0001428,2]
[330883794,1719899012815,-800.0,0.00014828,2]
[330883795,1719899012838,-9608.0,0.00015063,2]
[330883796,1719899012862,-300.0,0.00015068,2]
[330883797,1719899012885,-300.0,0.00015101,2]
[330883798,1719899012908,-600.0,0.00015102,2]
[330883799,1719899012932,-172.85,0.0001519,2]
[330883800,1719899012958,-1000.0,0.00015199,2]
[330883801,1719899012980,-893.0,0.000152,2]
[330883802,1719899013004,-432.96,0.00015268,2]
[330883803,1719899013027,-113144.56574916,0.00015535,2]
[330883804,1719899013052,-1106.10866471,0.00015581,5]
[330883805,1719899013076,-33161.26199781,0.00015582,2]
[330883806,1719899013099,-8667.75748077,0.00015604,2]
[330883807,1719899013125,-800.0,0.0001565,2]
[330883808,1719899013146,-203.93935288,0.00015818,2]
[330883809,1719899013167,-167.0,0.00015831,2]
[330883810,1719899013192,-360.0,0.00015844,2]
[330883811,1719899013214,-229.89,0.0001589,3]
[330883812,1719899013240,-1200.0,0.000159,5]
[330883813,1719899013266,-106966.0,0.000159,2]
[330883814,1719899013288,-528.33,0.00015918,2]
[330883815,1719899013310,-523.0,0.00015918,2]
[330883816,1719899013336,-600.0,0.00015924,2]
[330883817,1719899013360,-500.0,0.00015924,2]
[330883818,1719899013383,-500.0,0.00015924,2]
[330883819,1719899013405,-500.0,0.00015924,2]
[330883820,1719899013430,-432.96,0.00015963,2]
[330883821,1719899013453,-3896.0,0.00016,2]
[330883822,1719899013475,-203.15956,0.00016,2]
[330883823,1719899017794,64188.4478,0.0001475,2]
[330883824,1719899019215,3000.0,0.00016,2]
[330883825,1719899020421,300.41202061,0.0001428,2]
[330883826,1719899021488,19823.10043926,0.0001428,2]
[330883827,1719899025268,7500.0,0.000149,2]
[330883828,1719899035098,-10000.0,0.00016015,2]
[330883829,1719899035122,-200.22907378,0.0001605,2]
[330883830,1719899035145,-150.0,0.0001605,2]
[330883831,1719899035168,-150.0,0.0001605,2]
[330883832,1719899035195,-230.96536267,0.0001605,2]
[330883833,1719899035218,-150.0,0.0001605,2]
[330883834,1719899035241,-150.0,0.0001605,2]
[330883835,1719899035265,-150.0,0.0001605,2]
[330883836,1719899035288,-150.12807248,0.0001605,2]
[330883837,1719899035309,-963.0,0.000161,2]
[330883838,1719899035335,-11482.0,0.000161,3]
[330883839,1719899035361,-6084.79,0.00016116,2]
[330883840,1719899035383,-2378.1233349,0.00016172,2]
[330883841,1719899035405,-200.0,0.00016199,2]
[330883842,1719899035428,-33161.26199781,0.00016264,2]
[330883843,1719899035450,-167.0,0.00016354,2]
[330883844,1719899035473,-3005.65465615,0.000164,5]
[330883846,1719899395747,-12000.0,0.00013472,2]
[330883866,1719899431510,-300.0,0.00013471,2]
[330883869,1719899431520,-269.99999994,0.00013472,2]
[330883872,1719899431531,-351.899999,0.00013472,2]
[330883875,1719899431542,-3361.46006343,0.00013472,2]
[330883878,1719899431554,-474.46635641,0.00013472,2]
[330883880,1719899431567,-1168.07081033,0.00013472,2]
[330883881,1719899431579,-7173.21164932,0.00013472,2]
[330883882,1719899431588,-753.65,0.00013843,2]
[330883883,1719899431598,-1942.1711,0.00013899,2]
[330883884,1719899431608,-41577.118,0.00013899,2]
[330883885,1719899431617,-1218.1871,0.00013899,2]
[330883886,1719899431626,-3377.10994189,0.00013899,2]
[330883887,1719899431636,-56357.02239291,0.00013906,2]
[330883888,1719899431646,-164.16276632,0.00013906,2]
[330883889,1719899431655,-7209.06703362,0.00013906,2]
[330883890,1719899431665,-202.5175247,0.00013989,2]
[330883891,1719899431675,-548113.14984157,0.00013999,2]
[330883892,1719899431684,-4836.07649406,0.00013999,2]
[330883893,1719899431694,-5599.94548789,0.00013999,2]
[330883894,1719899431703,-10543.72975915,0.00013999,2]
[330883895,1719899431713,-5485.45858109,0.00013999,2]
[330883896,1719899431723,-500.0,0.00014006,2]
[330883897,1719899431732,-200.0,0.00014309,2]
[330883898,1719899431742,-325.33,0.00014309,2]
[330883899,1719899431751,-181.28,0.00014512,2]
[330883900,1719899431760,-18294.52685758,0.00014586,2]
[330883901,1719899431772,-903.45468781,0.00014586,2]
[330883902,1719899431784,-560.2023371,0.00014586,2]
[330883903,1719899431795,-1339.32568212,0.00014586,2]
[330883904,1719899431806,-2689.67043539,0.00014586,2]
[330883905,1719899431816,-499.99,0.00014586,2]
[330883906,1719899431826,-1000.0,0.0001475,2]
[330883907,1719899431835,-500.0,0.0001475,2]
[330883908,1719899431844,-5052.14174982,0.0001485,2]
[330883909,1719899431856,-20906.75793379,0.0001485,2]
[330883910,1719899431866,-422.76314946,0.0001485,2]
[330883911,1719899431878,-2478.29101073,0.0001485,2]
[330883912,1719899431888,-849.96717983,0.0001485,2]
[330883913,1719899431899,-650.23905597,0.0001485,2]
[330883914,1719899431910,-12611.04820383,0.0001485,2]
[330883915,1719899431921,-7800.69533894,0.0001485,2]
[330883916,1719899431934,-3210.85387545,0.0001485,2]
[330883917,1719899431947,-1567.55142058,0.0001485,2]
[330883918,1719899431958,-806.71347446,0.0001485,2]
[330883919,1719899431968,-575.23843111,0.0001485,2]
[330883921,1719899431979,-431.18512968,0.0001485,2]
[330883923,1719899431990,-447.53187127,0.0001485,2]
[330883925,1719899432001,-1904.50813767,0.0001485,2]
[330883928,1719899432012,-521.97670531,0.0001485,2]
[330883933,1719899432056,-1395.41908041,0.0001485,2]
[330883935,1719899432068,-679.83163208,0.0001485,2]
[330883938,1719899432079,-1253.37604603,0.0001485,2]
[330883940,1719899432088,-156.28,0.00014886,2]
[330883942,1719899432098,-156.28,0.00014932,2]
[330883944,1719899432107,-138.71745393,0.00014977,2]
[330883946,1719899432118,-17.56254607,0.00014977,2]
[330883948,1719899432127,-413.65,0.00014989,2]
[330883950,1719899432136,-2287.8379503,0.00014999,2]
[330883952,1719899432148,-734.08473914,0.00014999,2]
[330883954,1719899432157,-328.57013195,0.00015,2]
[330883956,1719899432168,-162.42986805,0.00015,2]
[330883958,1719899432177,-156.28,0.00015023,2]
[330883960,1719899432186,-150.0,0.00015068,2]
[330883962,1719899432195,-163.001551,0.00015068,2]
[330883964,1719899432204,-156.28,0.00015069,2]
[330883966,1719899432213,-500.0,0.00015102,2]
[330883967,1719899432222,-500.0,0.00015102,2]
[330883968,1719899432231,-163.73,0.00015105,2]
[330883969,1719899432240,-3377.10994187,0.00015113,2]
[330883970,1719899432249,-156.28,0.00015114,2]
[330883971,1719899432259,-156.28,0.0001516,2]
[330883972,1719899432268,-156.28,0.00015205,2]
[330883973,1719899432277,-156.28,0.00015251,2]
[330883974,1719899432286,-156.28,0.00015297,2]
[330883975,1719899432295,-164.1627663,0.00015323,2]
[330883976,1719899432305,-1398.63936405,0.00015335,2]
[330883977,1719899432314,-1269.62890364,0.00015335,2]
[330883978,1719899432323,-232.8469618,0.00015335,2]
[330883979,1719899432332,-156.28,0.00015342,2]
[330883980,1719899432341,-156.28,0.00015388,2]
[330883981,1719899432350,-544.30071955,0.00015399,2]
[330883982,1719899432359,-1133.92751376,0.00015399,2]
[330883983,1719899432368,-442.2300906,0.00015399,2]
[330883984,1719899432377,-1287.00868371,0.00015399,2]
[330883985,1719899432386,-266.3307691,0.00015399,2]
[330883986,1719899432396,-156.28,0.00015434,2]
[330883987,1719899432407,-720.44278656,0.00015479,2]
[330883988,1719899432416,-530.92308238,0.00015479,2]
[330883989,1719899432425,-955.85753929,0.00015479,2]
[330883990,1719899432439,-322.0,0.00015479,2]
[330883991,1719899432447,-156.28,0.00015479,2]
[330883992,1719899432456,-156.28,0.00015525,2]
[330883993,1719899432466,-155.0,0.00015535,2]
[330883994,1719899432475,-1679.50886082,0.00015535,2]
[330883995,1719899432487,-1272.24,0.00015535,2]
[330883996,1719899432498,-351.68374011,0.00015535,2]
[330883997,1719899432509,-665.36177942,0.00015535,2]
[330883998,1719899432518,-5000.0,0.00015535,2]
[330883999,1719899432527,-155.0,0.00015535,2]
[330884000,1719899432536,-2198.85723835,0.00015535,2]
[330884001,1719899432547,-295.11886762,0.00015535,2]
[330884002,1719899432556,-199.22078287,0.00015535,2]
[330884003,1719899432565,-2378.1233349,0.00015535,2]
[330884004,1719899432574,-217.93104005,0.00015535,2]
[330884005,1719899432583,-690.1937764,0.00015535,2]
[330884006,1719899432592,-172.198,0.00015541,2]